bitfinex-derivatives/quotes_BTCF0:USTF0_20250129
["timestamp","ask_amount","ask_price","bid_price","bid_amount"]
[1738179904616,0.00144953,103570.0,103540.0,0.3608]
[1738179904818,0.20407637,103570.0,103550.0,0.3608]
[1738179905220,0.193211,103550.0,103540.0,0.00014541]
[1738179905411,0.193211,103550.0,103520.0,0.3608]
[1738179905412,0.409103,103550.0,103500.0,0.64084951]
[1738179905719,0.63964321,103530.0,103500.0,0.36224951]
[1738179905921,0.193308,103500.0,103480.0,0.3608]
[1738179906118,0.3608,103500.0,103470.0,0.3608]
[1738179906426,0.554105,103500.0,103470.0,0.554153]
[1738179906610,0.554105,103500.0,103470.0,0.3608]
[1738179906810,0.193327,103490.0,103470.0,0.00014541]
[1738179907013,0.00014541,103500.0,103470.0,0.36094541]
[1738179907217,0.00144998,103530.0,103490.0,0.3608]
[1738179907415,0.00144998,103530.0,103510.0,0.3608]
[1738179907616,0.193267,103520.0,103490.0,0.193316]
[1738179907824,0.193291,103510.0,103480.0,0.554138]
[1738179908029,0.63964321,103510.0,103480.0,0.3608]
[1738179908211,0.23044518,103490.0,103470.0,0.3608]
[1738179908410,0.42377818,103490.0,103460.0,0.55562386]
[1738179908614,0.193309,103500.0,103480.0,0.00014541]
[1738179909017,1.19376621,103490.0,103480.0,0.00014541]
[1738179909222,1.19376621,103490.0,103440.0,0.554212]
[1738179909223,1.00044321,103490.0,103440.0,0.554212]
[1738179909521,0.19336,103470.0,103440.0,0.3608]
[1738179909717,0.47220321,103470.0,103440.0,0.3608]
[1738179909910,0.83300321,103470.0,103440.0,0.3608]
[1738179910111,0.63964321,103490.0,103450.0,0.3608]
[1738179910311,0.193343,103480.0,103450.0,0.3608]
[1738179910511,0.193326,103490.0,103460.0,0.3608]
[1738179910725,0.00014541,103470.0,103460.0,0.3608]
[1738179910921,0.00014541,103470.0,103450.0,0.554194]
[1738179911224,0.14511038,103470.0,103450.0,0.3608]
[1738179911521,0.63964321,103490.0,103450.0,0.36094541]
[1738179911726,0.47216821,103490.0,103460.0,0.3608]
[1738179911924,0.37272933,103500.0,103470.0,0.3608]
[1738179912224,0.01192933,103500.0,103480.0,0.554136]
[1738179912424,0.82257037,103520.0,103480.0,0.3608]
[1738179912425,0.27884321,103510.0,103480.0,0.3608]
[1738179912619,0.27884321,103490.0,103480.0,0.3608]
[1738179912820,0.63964321,103510.0,103480.0,0.36094541]
[1738179913019,0.63964321,103490.0,103480.0,0.00014541]
[1738179913228,0.27884321,103490.0,103480.0,0.00014541]
[1738179913426,0.83296621,103490.0,103450.0,0.3608]
[1738179913624,0.27884321,103470.0,103450.0,0.554196]
[1738179913825,0.47216821,103490.0,103460.0,0.193374]
[1738179914028,0.554108,103500.0,103460.0,0.554174]
[1738179914332,0.63964321,103510.0,103460.0,0.554174]
[1738179914333,0.193287,103510.0,103470.0,0.3608]
[1738179914526,0.76153878,103510.0,103480.0,0.193335]
[1738179914721,0.19331,103500.0,103470.0,0.554158]
[1738179914923,0.00014541,103500.0,103480.0,0.00014541]
[1738179915119,0.00014541,103500.0,103490.0,0.554123]
[1738179915428,0.00014541,103500.0,103480.0,0.55428141]
[1738179915628,0.00014541,103500.0,103490.0,0.193323]
[1738179915833,0.193323,103490.0,103470.0,0.3608]
[1738179916125,0.19345141,103500.0,103480.0,0.3608]
[1738179916432,0.20745178,103490.0,103470.0,0.3608]
[1738179916728,0.76158078,103490.0,103460.0,0.55562696]
[1738179916931,0.76158078,103490.0,103460.0,0.00144996]
[1738179916932,0.40081178,103470.0,103460.0,0.00144996]
[1738179917131,0.61659178,103470.0,103420.0,0.36225043]
[1738179917327,0.61659178,103470.0,103400.0,0.3991]
[1738179917328,0.55425,103430.0,103400.0,0.4608]
[1738179917631,0.20745178,103420.0,103400.0,0.4608]
[1738179917835,0.554272,103410.0,103400.0,0.04616189]
[1738179918130,0.554272,103410.0,103380.0,0.3608]
[1738179918131,0.193472,103410.0,103380.0,0.3608]
[1738179918324,0.56825178,103400.0,103370.0,0.36225122]
[1738179918722,0.20745178,103380.0,103370.0,0.00145122]
[1738179918923,0.56825178,103380.0,103350.0,0.3608]
[1738179919121,0.40103178,103360.0,103330.0,0.3608]
[1738179919325,0.56825178,103340.0,103320.0,8.009e-05]
[1738179919530,0.3608,103330.0,103300.0,0.66483007]
[1738179919731,0.76191078,103310.0,103300.0,0.66483007]
[1738179919919,0.76191078,103310.0,103300.0,0.66497548]
[1738179920119,0.20745178,103310.0,103300.0,0.46895802]
[1738179920319,0.15905375,103310.0,103290.0,0.34298203]
[1738179920525,0.15905375,103310.0,103200.0,0.048465]
[1738179920526,0.193712,103290.0,103250.0,0.3608]
[1738179920728,0.76195178,103290.0,103250.0,0.3608]
[1738179920933,0.3608,103300.0,103220.0,0.8728]
[1738179920934,0.193762,103260.0,103230.0,0.3608]
[1738179921231,0.3608,103280.0,103240.0,0.3608]
[1738179921232,8.009e-05,103250.0,103240.0,0.3608]
[1738179921529,0.36225391,103280.0,103240.0,0.193791]
[1738179921731,0.36225391,103280.0,103230.0,0.3608]
[1738179921732,0.20745178,103270.0,103230.0,0.3608]
[1738179921926,0.00014541,103260.0,103240.0,0.3608]
[1738179922129,0.20745178,103250.0,103230.0,0.36094541]
[1738179922328,0.56825178,103250.0,103230.0,0.00014541]
[1738179922526,0.20745178,103250.0,103230.0,0.00014541]
[1738179922732,0.28190423,103260.0,103230.0,0.00014541]
[1738179923232,0.83645923,103260.0,103230.0,0.00014541]
[1738179923425,0.7880612,103260.0,103230.0,0.00014541]
[1738179924130,0.3608,103250.0,103230.0,0.00014541]
[1738179924346,0.01188635,103290.0,103240.0,0.3608]
[1738179924347,0.64255882,103280.0,103240.0,0.3608]
[1738179924641,0.64255882,103280.0,103230.0,0.36094541]
[1738179924642,0.80791882,103300.0,103270.0,0.7216]
[1738179924934,0.80791882,103300.0,103290.0,0.3608]
[1738179925130,0.00014541,103300.0,103290.0,0.3608]
[1738179925333,0.28175882,103320.0,103290.0,0.3608]
[1738179925523,0.193627,103330.0,103310.0,0.3608]
[1738179925729,0.28175882,103340.0,103320.0,0.3608]
[1738179925930,0.93515373,103350.0,103330.0,0.3608]
[1738179926125,0.193622,103330.0,103320.0,0.3608]
[1738179926323,0.47536482,103340.0,103310.0,0.3608]
[1738179926522,0.47536482,103340.0,103310.0,0.36094541]
[1738179926728,0.00014541,103340.0,103320.0,0.3608]
[1738179926928,0.00014541,103340.0,103330.0,0.3608]
[1738179927129,0.00145314,103360.0,103340.0,0.193594]
[1738179927329,0.00145314,103360.0,103350.0,0.7216]
[1738179927528,0.47529182,103380.0,103350.0,0.7216]
[1738179927730,0.193569,103360.0,103330.0,0.3608]
[1738179927927,0.36273479,103370.0,103330.0,0.3608]
[1738179928232,0.19359,103350.0,103330.0,0.3608]
[1738179928429,0.19549079,103370.0,103330.0,0.3608]
[1738179928632,0.00014541,103360.0,103340.0,0.55454241]
[1738179928933,0.193584,103350.0,103340.0,0.00014541]
[1738179929334,0.193608,103340.0,103320.0,0.3608]
[1738179929535,0.42696879,103340.0,103320.0,0.3608]
[1738179929733,0.83628623,103360.0,103330.0,0.3608]
[1738179930039,0.47548623,103360.0,103340.0,0.3608]
[1738179930537,0.193589,103350.0,103330.0,0.3608]
[1738179930734,0.193589,103350.0,103340.0,0.00014541]
[1738179931034,0.00014541,103360.0,103340.0,0.36094541]
[1738179931228,0.00014541,103360.0,103350.0,0.3608]
[1738179931628,0.00014541,103360.0,103350.0,0.554384]
[1738179931833,0.00014541,103360.0,103350.0,0.3608]
[1738179932534,0.29330127,103380.0,103350.0,0.3608]
[1738179932535,0.01154245,103380.0,103350.0,0.3608]
[1738179932733,0.36225215,103400.0,103350.0,0.3608]
[1738179932734,0.36225215,103400.0,103370.0,0.3608]
[1738179932935,0.36225215,103400.0,103350.0,0.3608]
[1738179932936,0.00193442,103390.0,103380.0,0.3608]
[1738179933234,0.00145215,103400.0,103390.0,0.19351]
[1738179933424,0.00338638,103400.0,103390.0,0.55431]
[1738179933631,0.00338638,103400.0,103390.0,0.3608]
[1738179934027,0.52686541,103410.0,103390.0,0.3608]
[1738179934028,0.00014541,103410.0,103390.0,0.3608]
[1738179934232,0.00145121,103440.0,103420.0,0.193447]
[1738179934437,0.00145121,103440.0,103430.0,0.3608]
[1738179934628,0.00338469,103440.0,103430.0,0.3608]
[1738179934829,0.19680669,103440.0,103420.0,0.3608]
[1738179935133,0.00338469,103440.0,103420.0,0.3608]
[1738179935331,0.00338469,103440.0,103430.0,0.3608]
[1738179935533,0.47516082,103450.0,103420.0,0.36094541]
[1738179935534,0.43014748,103450.0,103420.0,0.36094541]
[1738179935730,0.19535848,103440.0,103420.0,0.36094541]
[1738179935927,0.193435,103430.0,103420.0,0.36094541]
[1738179936125,0.47519382,103430.0,103420.0,0.00014541]
[1738179936428,0.28320991,103470.0,103430.0,0.193426]
[1738179936627,0.28320991,103470.0,103420.0,0.36094541]
[1738179936628,0.00145109,103470.0,103460.0,0.3608]
[1738179936833,0.52668,103490.0,103470.0,0.193352]
[1738179937027,0.52668,103490.0,103460.0,0.3608]
[1738179937231,0.52668,103490.0,103480.0,0.3608]
[1738179938434,0.1,103500.0,103480.0,0.3608]
[1738179938732,0.00145031,103520.0,103490.0,0.3608]
[1738179938939,0.5266,103550.0,103520.0,0.193262]
[1738179939236,0.72126071,103550.0,103540.0,0.3608]
[1738179939438,0.52804971,103550.0,103540.0,0.3608]
[1738179940235,0.719811,103550.0,103540.0,0.3608]
[1738179940535,0.5266,103550.0,103540.0,0.3608]
[1738179940735,0.28175882,103590.0,103550.0,0.193211]
[1738179941032,0.1,103600.0,103580.0,0.3608]
[1738179941239,0.1,103600.0,103590.0,0.3608]
[1738179941438,0.1,103600.0,103570.0,0.3608]
[1738179941639,0.42650179,103590.0,103580.0,0.00014541]
[1738179941834,0.23336079,103590.0,103580.0,0.00014541]
[1738179942037,0.11473317,103600.0,103570.0,0.3608]
[1738179942430,0.30785617,103600.0,103570.0,0.36094541]
[1738179942626,0.30785617,103600.0,103580.0,0.3608]
[1738179942837,0.1,103600.0,103580.0,0.3608]
[1738179943039,0.1,103600.0,103590.0,0.3608]
[1738179943441,0.719401,103620.0,103590.0,0.3608]
[1738179943637,0.193099,103610.0,103600.0,0.3608]
[1738179943837,0.54075529,103620.0,103600.0,0.3608]
[1738179944037,0.73384329,103620.0,103600.0,0.3608]
[1738179944435,0.54075529,103620.0,103610.0,0.3608]
[1738179944733,0.49235726,103620.0,103600.0,0.3608]
[1738179945038,0.00144886,103630.0,103610.0,0.3608]
[1738179945241,0.00144886,103630.0,103620.0,0.3608]
[1738179945444,0.01483976,103640.0,103620.0,0.3608]
[1738179945746,0.193018,103660.0,103620.0,0.3608]
[1738179945941,0.19305,103640.0,103620.0,0.36094541]
[1738179946141,0.28175882,103650.0,103620.0,0.36094541]
[1738179946529,0.193048,103640.0,103630.0,0.3608]
[1738179946730,0.193061,103630.0,103620.0,0.36094541]
[1738179946936,0.01436959,103670.0,103620.0,0.36094541]
[1738179947138,0.193006,103660.0,103650.0,0.3608]
[1738179947433,0.193043,103640.0,103630.0,0.3608]
[1738179947833,0.193024,103650.0,103630.0,0.3608]
[1738179948038,0.193024,103650.0,103640.0,0.3608]
[1738179948240,0.00144825,103690.0,103640.0,0.3608]
[1738179948437,0.00144825,103690.0,103670.0,0.3608]
[1738179948438,0.00337707,103690.0,103670.0,0.3608]
[1738179948640,0.192993,103670.0,103650.0,0.3608]
[1738179948939,0.64593589,103690.0,103670.0,0.0001447]
[1738179948940,0.192974,103680.0,103670.0,0.0001447]
[1738179949146,0.01655983,103690.0,103670.0,0.3609447]
[1738179949351,0.00144717,103730.0,103680.0,0.3608]
[1738179949534,0.19432217,103730.0,103720.0,0.3608]
[1738179949740,0.19432217,103730.0,103700.0,0.3608]
[1738179949937,0.28320599,103730.0,103710.0,0.0001447]
[1738179950139,0.192894,103720.0,103710.0,0.0001447]
[1738179950345,0.192922,103710.0,103670.0,0.3622469]
[1738179950646,0.28175882,103710.0,103670.0,0.3622469]
[1738179950842,0.19292,103710.0,103670.0,0.3622469]
[1738179951040,0.19292,103710.0,103690.0,0.3608]
[1738179951233,0.3608,103720.0,103690.0,0.3608]
[1738179951439,0.00144717,103730.0,103690.0,0.3608]
[1738179951745,0.19304434,103720.0,103690.0,0.3609447]
[1738179951942,0.00014234,103720.0,103710.0,0.3608]
[1738179952849,0.19304634,103720.0,103690.0,0.3609447]
[1738179953048,0.192913,103710.0,103700.0,0.3608]
[1738179953243,0.19303634,103720.0,103700.0,0.3608]
[1738179953449,0.55383634,103720.0,103700.0,0.3608]
[1738179953749,0.14605948,103740.0,103710.0,0.3608]
[1738179953935,0.4608,103800.0,103730.0,0.7216]
[1738179954137,0.1,103800.0,103770.0,0.3608]
[1738179954341,0.1,103800.0,103760.0,0.3608]
[1738179954545,0.192768,103790.0,103760.0,0.3608]
[1738179954747,0.4608,103800.0,103750.0,0.3608]
[1738179954941,0.19278,103790.0,103760.0,0.3608]
[1738179955137,0.19279,103780.0,103760.0,0.3609447]
[1738179955442,0.29275,103800.0,103770.0,0.3608]
[1738179955845,0.192765,103790.0,103770.0,0.3608]
[1738179956243,0.192801,103770.0,103760.0,0.0001447]
[1738179956446,0.553601,103770.0,103760.0,0.0001447]
[1738179956645,0.192801,103770.0,103760.0,0.0001447]
[1738179956843,0.05160197,103800.0,103760.0,0.56742202]
[1738179957048,0.05160197,103800.0,103790.0,0.3608]
[1738179957455,0.192773,103790.0,103760.0,0.56727732]
[1738179957745,0.192773,103790.0,103760.0,0.3608]
[1738179957951,0.192764,103790.0,103780.0,0.0001447]
[1738179958148,0.553564,103790.0,103780.0,0.0001447]
[1738179958550,0.3608,103790.0,103740.0,0.3608]
[1738179958753,0.20647732,103780.0,103750.0,0.00192771]
[1738179959048,0.39927432,103780.0,103750.0,0.36272771]
[1738179959245,0.192806,103770.0,103750.0,0.00192771]
[1738179959440,0.76009732,103760.0,103750.0,0.00192771]
[1738179959639,0.55362,103760.0,103730.0,0.26224643]
[1738179959846,0.3608,103770.0,103740.0,0.3608]
[1738179960046,0.0001447,103770.0,103750.0,0.00192771]
[1738179960254,0.0001447,103770.0,103760.0,0.3608]
[1738179960442,0.0001447,103770.0,103760.0,0.55362]
[1738179960443,1e-08,103770.0,103760.0,0.55362]
[1738179960648,1e-08,103770.0,103760.0,0.76009732]
[1738179960846,1e-08,103770.0,103760.0,1.06009732]
[1738179961052,0.05160197,103800.0,103790.0,0.192764]
[1738179961247,0.05160197,103800.0,103790.0,0.7216]
[1738179961655,0.05160197,103800.0,103790.0,0.914364]
[1738179962244,0.05160197,103800.0,103790.0,0.3608]
[1738179962446,0.192764,103790.0,103780.0,0.3609447]
[1738179962842,0.553564,103790.0,103780.0,0.0001447]
[1738179963053,0.14436597,103790.0,103780.0,0.0001447]
[1738179963348,0.50516597,103790.0,103780.0,0.0001447]
[1738179963551,0.78395382,103790.0,103780.0,0.0001447]
[1738179963757,0.78395382,103790.0,103780.0,7e-07]
[1738179964644,1.08395382,103790.0,103780.0,7e-07]
[1738179965052,0.50516597,103790.0,103780.0,7e-07]
[1738179965755,0.05174597,103800.0,103780.0,0.7216007]
[1738179965956,0.00334794,103800.0,103790.0,0.3608]
[1738179966360,0.00334794,103800.0,103780.0,0.3608007]
[1738179966747,0.19609494,103800.0,103780.0,0.3608007]
[1738179966946,0.19609494,103800.0,103780.0,7e-07]
[1738179966947,0.192764,103790.0,103780.0,7e-07]
[1738179967566,0.553564,103790.0,103780.0,7e-07]
[1738179967772,0.914364,103790.0,103780.0,7e-07]
[1738179968062,1.214364,103790.0,103780.0,7e-07]
[1738179968449,1.214364,103790.0,103750.0,0.00192771]
[1738179968450,1.0216,103790.0,103750.0,0.00192771]
[1738179968651,1.00038785,103760.0,103700.0,0.3608]
[1738179968851,0.19288,103730.0,103710.0,0.36272845]
[1738179969158,0.31240197,103750.0,103720.0,0.00192826]
[1738179969372,0.3608,103760.0,103720.0,0.36272826]
[1738179969558,0.27878785,103780.0,103750.0,0.3608]
[1738179969753,0.192787,103780.0,103750.0,0.3608]
[1738179969956,0.192787,103780.0,103760.0,0.3608]
[1738179970155,0.1929317,103780.0,103760.0,0.3608]
[1738179970352,0.553606,103770.0,103740.0,0.3608]
[1738179970558,0.553606,103770.0,103760.0,0.0001447]
[1738179971160,0.5537327,103780.0,103760.0,0.0001447]
[1738179971466,0.192801,103770.0,103760.0,0.0001447]
[1738179971965,0.47171955,103780.0,103760.0,0.0001447]
[1738179972158,0.192801,103770.0,103760.0,0.0001447]
[1738179972468,0.553601,103770.0,103760.0,0.0001447]
[1738179973062,0.36224667,103790.0,103760.0,0.0001447]
[1738179973063,0.00144667,103790.0,103760.0,0.3609447]
[1738179973256,0.00144667,103790.0,103770.0,0.36067875]
[1738179973452,0.00144667,103790.0,103780.0,0.3608]
[1738179973658,0.00144667,103790.0,103770.0,0.3608]
[1738179973860,0.19421067,103790.0,103770.0,0.3608]
[1738179974059,0.00144667,103790.0,103770.0,0.3608]
[1738179974265,0.63958785,103780.0,103760.0,0.3609447]
[1738179974561,0.553601,103770.0,103760.0,0.0001447]
[1738179975158,0.19421167,103790.0,103760.0,0.0001447]
[1738179975463,0.19421167,103790.0,103760.0,0.3609447]
[1738179975863,0.63958785,103780.0,103760.0,0.0001447]
[1738179976069,0.47157285,103780.0,103760.0,0.0001447]
[1738179976270,0.63958785,103780.0,103760.0,0.0001447]
[1738179976565,0.553601,103770.0,103760.0,0.0001447]
[1738179976758,0.63958785,103780.0,103730.0,0.3608]
[1738179976963,0.192805,103770.0,103740.0,0.3608]
[1738179977168,0.27878785,103760.0,103740.0,0.3608]
[1738179977376,0.63958785,103760.0,103710.0,0.36224638]
[1738179977668,0.63958785,103760.0,103720.0,0.3608]
[1738179977861,0.192845,103750.0,103730.0,0.3608]
[1738179978059,0.192818,103770.0,103730.0,0.3608]
[1738179978257,0.27878785,103760.0,103730.0,0.3608]
[1738179978466,0.192851,103750.0,103730.0,0.3608]
[1738179978858,0.192857,103740.0,103730.0,0.3608]
[1738179979470,0.27878785,103740.0,103720.0,0.0001447]
[1738179979662,0.553675,103730.0,103720.0,0.0001447]
[1738179979858,0.192875,103730.0,103720.0,0.0001447]
[1738179980272,0.192875,103730.0,103720.0,0.3609447]
[1738179980472,0.192875,103730.0,103720.0,0.0001447]
[1738179980872,0.192875,103730.0,103720.0,1e-08]
[1738179981268,0.192867,103740.0,103720.0,0.36080001]
[1738179981475,0.47166285,103730.0,103720.0,1e-08]
[1738179982577,0.00014469,103740.0,103720.0,1e-08]
[1738179982578,0.00014469,103740.0,103720.0,0.36080001]
[1738179982761,0.00014469,103740.0,103730.0,0.3608]
[1738179983074,0.01849002,103770.0,103730.0,0.56727002]
[1738179983371,0.19421067,103790.0,103760.0,0.91442]
[1738179983577,0.00144667,103790.0,103780.0,0.3608]
[1738179984381,0.19415176,103830.0,103790.0,0.192759]
[1738179984572,0.20647002,103820.0,103800.0,0.3608]
[1738179984777,0.39918202,103820.0,103800.0,0.3608]
[1738179984963,0.20647002,103820.0,103810.0,0.3608]
[1738179985166,0.00144576,103830.0,103810.0,0.3608]
[1738179985473,0.00144576,103830.0,103820.0,0.553508]
[1738179985670,0.18472468,103840.0,103830.0,0.19269]
[1738179985971,0.00144513,103870.0,103830.0,0.7216]
[1738179986175,0.00144513,103870.0,103860.0,0.3608]
[1738179986581,0.19406413,103870.0,103850.0,0.3608]
[1738179986781,0.39910402,103860.0,103840.0,0.3609447]
[1738179986990,0.20647002,103860.0,103840.0,0.3609447]
[1738179987284,0.39912202,103850.0,103840.0,0.0001447]
[1738179987486,0.92807002,103850.0,103810.0,0.3608]
[1738179987686,0.06743943,103870.0,103810.0,0.3608]
[1738179987687,0.19272,103820.0,103810.0,0.3608]
[1738179987996,0.192691,103830.0,103810.0,0.3608]
[1738179988285,0.0178393,103870.0,103840.0,0.3608]
[1738179988488,0.35753815,103920.0,103880.0,0.192593]
[1738179988687,0.1,103900.0,103890.0,0.7216]
[1738179988893,0.11821803,103900.0,103890.0,0.7216]
[1738179989587,0.1,103900.0,103890.0,0.7216]
[1738179990383,0.21661712,103900.0,103880.0,0.0001447]
[1738179990588,0.192578,103890.0,103880.0,0.0001447]
[1738179990984,0.21661712,103900.0,103880.0,0.3609447]
[1738179991184,0.192578,103890.0,103880.0,0.0001447]
[1738179991586,0.853378,103890.0,103880.0,1e-08]
[1738179991795,0.192671,103840.0,103830.0,0.36224457]
[1738179991995,0.192694,103830.0,103810.0,0.6646]
[1738179992193,0.16501515,103860.0,103820.0,0.3608]
[1738179992392,0.71842513,103870.0,103850.0,0.3608]
[1738179992703,0.35764915,103860.0,103850.0,0.3608]
[1738179992891,0.52580513,103870.0,103850.0,0.3608]
[1738179993092,0.52594983,103870.0,103850.0,0.3609447]
[1738179993293,0.4775518,103870.0,103850.0,0.3609447]
[1738179993494,0.0001447,103870.0,103860.0,0.553434]
[1738179993687,0.0001447,103870.0,103860.0,0.3608]
[1738179994501,0.1927677,103870.0,103850.0,0.3609447]
[1738179994702,0.1927677,103870.0,103860.0,0.3608]
[1738179995001,0.0001447,103870.0,103860.0,0.36041739]
[1738179995695,0.0001447,103870.0,103860.0,0.3608]
[1738179995897,0.0001447,103870.0,103850.0,0.0001447]
[1738179995898,0.192634,103860.0,103850.0,0.0001447]
[1738179996095,0.71844915,103860.0,103850.0,1e-08]
[1738179996297,0.3609447,103870.0,103820.0,0.3608]
[1738179996491,0.192671,103840.0,103830.0,0.3608]
[1738179996691,0.192671,103840.0,103820.0,0.3608]
[1738179996897,0.192671,103840.0,103830.0,0.3608]
[1738179997093,0.192671,103850.0,103830.0,0.3608]
[1738179997297,0.16501515,103860.0,103840.0,0.3608]
[1738179997503,0.16501515,103880.0,103850.0,0.3608]
[1738179997693,0.192639,103860.0,103840.0,0.3608]
[1738179998003,0.35779885,103860.0,103840.0,0.3608]
[1738179998192,0.35779885,103860.0,103840.0,0.3609447]
[1738179998500,0.1927787,103860.0,103840.0,0.3609447]
[1738179998697,0.192653,103850.0,103840.0,0.3609447]
[1738179998888,0.192653,103850.0,103820.0,0.3608]
[1738179998889,0.3608,103850.0,103820.0,0.3608]
[1738179999093,0.192735,103810.0,103800.0,0.3608]
[1738179999290,0.35771715,103830.0,103800.0,0.3608]
[1738179999499,0.30931912,103830.0,103800.0,0.3608]
[1738179999701,0.192713,103820.0,103800.0,0.3608]
[1738179999900,0.00144564,103840.0,103810.0,0.3608]
[1738180000103,0.00144564,103840.0,103830.0,0.3608]
[1738180000403,0.192695,103830.0,103820.0,0.3608]
[1738180000709,0.19411964,103840.0,103820.0,0.3608]
[1738180000891,0.02005217,103840.0,103830.0,0.3608]
[1738180001202,0.19412364,103840.0,103820.0,0.3608]
[1738180001501,0.192708,103820.0,103810.0,0.3609447]
[1738180001700,0.19412064,103840.0,103810.0,0.5536647]
[1738180001891,0.19412264,103840.0,103810.0,0.3609447]
[1738180002091,0.00159034,103840.0,103820.0,0.192701]
[1738180002298,0.00159034,103840.0,103830.0,0.3608]
[1738180002495,0.16501515,103870.0,103830.0,0.3608]
[1738180002807,0.192653,103850.0,103840.0,0.3608]
[1738180003004,0.192653,103850.0,103830.0,0.3608]
[1738180003492,0.16501515,103850.0,103810.0,0.3608]
[1738180003692,0.192686,103840.0,103830.0,0.0001447]
[1738180004399,0.0001447,103850.0,103830.0,0.3609447]
[1738180004694,0.192671,103840.0,103830.0,0.0001447]
[1738180005601,0.192708,103820.0,103810.0,0.3608]
[1738180005799,0.192679,103840.0,103810.0,0.3608]
[1738180006000,0.192679,103840.0,103830.0,0.3608]
[1738180006196,0.192656,103850.0,103830.0,0.3608]
[1738180006393,0.192641,103860.0,103840.0,0.3608]
[1738180006598,0.192653,103850.0,103840.0,0.3608]
[1738180006804,0.1927977,103850.0,103840.0,0.3608]
[1738180007008,0.35781285,103850.0,103840.0,0.3608]
[1738180007195,0.192671,103840.0,103830.0,0.0001447]
[1738180007509,0.553471,103840.0,103830.0,1e-08]
[1738180007698,0.853471,103840.0,103830.0,1e-08]
[1738180007899,0.048175,103830.0,103780.0,0.3622453]
[1738180008214,0.57412385,103850.0,103800.0,0.3608]
[1738180008399,0.21512137,103860.0,103840.0,0.3608]
[1738180008708,0.192643,103860.0,103850.0,0.3608]
[1738180008899,0.192603,103880.0,103850.0,0.3608]
[1738180009102,0.02261124,103880.0,103860.0,0.3608]
[1738180009293,0.1927637,103870.0,103850.0,0.3608]
[1738180009501,0.192645,103860.0,103840.0,0.0001447]
[1738180009707,0.52595985,103870.0,103840.0,0.0001447]
[1738180010100,0.192653,103850.0,103840.0,0.0001447]
[1738180010805,0.192643,103860.0,103840.0,0.3609447]
[1738180011410,0.0001447,103870.0,103850.0,0.3608]
[1738180011709,0.1926,103880.0,103860.0,0.3608]
[1738180011908,0.3608,103880.0,103850.0,0.3608]
[1738180012102,0.192634,103860.0,103840.0,0.3608]
[1738180012307,0.192621,103870.0,103840.0,0.3608]
[1738180012501,0.3608,103870.0,103850.0,0.3608]
[1738180012704,0.71844815,103870.0,103850.0,0.3608]
[1738180012909,0.52595985,103870.0,103850.0,0.3608]
[1738180013208,0.192651,103860.0,103840.0,0.3609447]
[1738180013411,0.192653,103850.0,103840.0,0.3609447]
[1738180013602,0.192653,103850.0,103800.0,0.3608]
[1738180013603,0.52581515,103850.0,103800.0,0.3608]
[1738180013809,0.55353,103810.0,103780.0,0.0014453]
[1738180014005,0.3608,103790.0,103770.0,0.3035]
[1738180014211,0.192805,103770.0,103730.0,1.074962]
[1738180014411,0.3608,103760.0,103740.0,0.192847]
[1738180014713,0.3608,103770.0,103740.0,0.16501515]
[1738180014920,0.3608,103750.0,103740.0,0.0001447]
[1738180015215,0.0001447,103760.0,103740.0,0.0001447]
[1738180015519,0.0001447,103760.0,103750.0,0.192838]
[1738180015714,0.02285762,103790.0,103750.0,0.6608]
[1738180015916,0.3608,103790.0,103760.0,0.35783015]
[1738180016108,0.3608,103780.0,103760.0,0.553615]
[1738180016305,0.02308076,103810.0,103770.0,0.3608]
[1738180016510,0.00144611,103820.0,103800.0,0.71855515]
[1738180016713,0.00144611,103820.0,103800.0,0.3608]
[1738180017015,0.19430281,103820.0,103800.0,0.3609447]
[1738180017320,0.11430281,103820.0,103800.0,0.3609447]
[1738180017711,0.3609447,103820.0,103800.0,0.3609447]
[1738180018015,0.21594584,103820.0,103800.0,0.3609447]
[1738180018408,0.57674584,103820.0,103800.0,0.3609447]
[1738180018607,0.192727,103810.0,103800.0,0.0001447]
[1738180018809,0.57674884,103820.0,103800.0,0.3609447]
[1738180019014,0.02323684,103820.0,103810.0,0.3608]
[1738180019216,0.21594484,103820.0,103810.0,0.3608]
[1738180019410,0.21594484,103820.0,103800.0,0.3609447]
[1738180019812,0.35774215,103810.0,103800.0,0.0001447]
[1738180020018,0.192764,103790.0,103780.0,0.3608]
[1738180020217,0.16501515,103790.0,103760.0,0.3608]
[1738180020417,0.192823,103760.0,103740.0,0.36224575]
[1738180020610,0.192823,103760.0,103730.0,0.2886]
[1738180020611,0.30946112,103750.0,103730.0,0.2886]
[1738180020814,0.30946112,103750.0,103720.0,0.3608]
[1738180021021,0.16501515,103730.0,103700.0,0.1]
[1738180021219,0.192905,103720.0,103700.0,0.1]
[1738180021412,0.16660683,103750.0,103710.0,0.3608]
[1738180021613,0.16660683,103750.0,103720.0,0.3608]
[1738180021614,0.192863,103740.0,103720.0,0.3608]
[1738180021808,0.0001447,103740.0,103720.0,0.3608]
[1738180022223,0.0001447,103740.0,103730.0,0.3608]
[1738180022425,0.0001447,103740.0,103730.0,0.553675]
[1738180022613,0.0001447,103740.0,103730.0,0.3608]
[1738180022815,0.0001447,103740.0,103720.0,0.3609447]
[1738180023118,0.1930067,103740.0,103720.0,0.3609447]
[1738180023423,0.00144698,103750.0,103740.0,0.192857]
[1738180023617,0.18807218,103790.0,103740.0,0.52581515]
[1738180023814,0.192803,103770.0,103740.0,0.3608]
[1738180024014,0.35781815,103770.0,103750.0,0.3608]
[1738180024218,0.3608,103760.0,103720.0,0.6621]
[1738180024410,0.16501515,103770.0,103720.0,0.6621]
[1738180024626,0.16501515,103750.0,103720.0,0.6621]
[1738180024826,0.16515985,103750.0,103730.0,0.0001447]
[1738180025119,0.16515985,103750.0,103730.0,0.3609447]
[1738180025423,0.0001447,103750.0,103740.0,0.3608]
[1738180025826,0.16501515,103750.0,103740.0,0.3608]
[1738180026024,0.192857,103740.0,103730.0,0.0001447]
[1738180026218,0.192902,103720.0,103700.0,0.03925235]
[1738180026418,0.16501515,103700.0,103690.0,0.22920906]
[1738180026616,0.02325061,103740.0,103720.0,0.192881]
[1738180026826,0.13986773,103760.0,103730.0,0.3608]
[1738180027018,0.33268773,103760.0,103720.0,0.19288]